bitfinex-derivatives/quotes_BTCF0:USTF0_20251103
["timestamp","ask_amount","ask_price","bid_price","bid_amount"]
[1762182490261,0.39799,107760.0,107750.0,0.1568802]
[1762182490565,0.39799,107760.0,107750.0,0.06405]
[1762182490760,0.39799,107760.0,107750.0,0.1568801]
[1762182490956,0.39899,107760.0,107750.0,0.03025]
[1762182491157,0.39899,107760.0,107750.0,0.002]
[1762182491158,0.61285276,107760.0,107750.0,0.002]
[1762182491367,0.61285276,107760.0,107750.0,0.003]
[1762182492867,0.61285276,107760.0,107750.0,0.0958302]
[1762182493067,0.60105276,107760.0,107750.0,0.1408802]
[1762182493369,0.3518,107760.0,107750.0,0.1408802]
[1762182493564,0.003,107760.0,107750.0,0.1408802]
[1762182493762,0.003,107760.0,107750.0,0.19077446]
[1762182494160,0.003,107760.0,107750.0,0.55157446]
[1762182494663,0.003,107760.0,107750.0,0.78357446]
[1762182494864,0.4536058,107780.0,107770.0,0.1372329]
[1762182495062,0.3608,107780.0,107770.0,0.51138596]
[1762182495369,0.0928043,107780.0,107770.0,0.51138596]
[1762182495570,0.1141243,107780.0,107770.0,0.51138596]
[1762182495963,0.04698,107780.0,107770.0,0.51238596]
[1762182496362,0.003,107780.0,107770.0,0.87318596]
[1762182496561,0.3608,107800.0,107790.0,0.1372157]
[1762182496768,0.40778,107810.0,107800.0,0.1507071]
[1762182496965,0.5005585,107810.0,107800.0,0.05792]
[1762182497768,0.1367671,107800.0,107790.0,0.39711306]
[1762182497969,0.4975671,107800.0,107790.0,0.09433306]
[1762182498273,0.4975671,107800.0,107790.0,0.36862]
[1762182498467,0.5085671,107800.0,107790.0,0.37162]
[1762182499365,0.71162986,107800.0,107790.0,0.37162]
[1762182499571,0.71162986,107800.0,107790.0,0.3272]
[1762182499770,0.71607986,107800.0,107790.0,0.3272]
[1762182500071,0.71607986,107800.0,107790.0,0.003]
[1762182500273,0.41578,107800.0,107790.0,0.1412158]
[1762182500480,0.3718,107800.0,107790.0,0.4654158]
[1762182500974,0.3718,107800.0,107790.0,0.51532886]
[1762182501278,0.011,107800.0,107790.0,0.87612886]
[1762182501576,0.011,107800.0,107790.0,0.8927581]
[1762182501872,0.003,107810.0,107800.0,0.1507071]
[1762182502070,0.3608,107830.0,107820.0,0.1506899]
[1762182502274,0.40478,107840.0,107830.0,0.1371813]
[1762182502460,0.37029771,107840.0,107830.0,0.1371813]
[1762182502867,0.40478,107840.0,107830.0,0.1371813]
[1762182503375,0.38212,107840.0,107830.0,0.1371813]
[1762182503572,0.3608,107840.0,107830.0,0.1371813]
[1762182503776,0.38212,107840.0,107830.0,0.04442]
[1762182503974,0.40478,107840.0,107830.0,0.1371813]
[1762182504368,0.40478,107840.0,107830.0,0.04442]
[1762182504875,0.40478,107840.0,107830.0,0.1371813]
[1762182505465,0.04398,107840.0,107830.0,0.1371813]
[1762182505866,0.40478,107840.0,107830.0,0.1381813]
[1762182506075,0.4975327,107840.0,107830.0,0.1381813]
[1762182506267,0.4975327,107840.0,107830.0,0.1431813]
[1762182506268,0.4985327,107840.0,107830.0,0.1431813]
[1762182506875,0.4985327,107840.0,107830.0,0.4673013]
[1762182507680,0.70159546,107840.0,107830.0,0.05042]
[1762182507869,0.71339546,107840.0,107830.0,0.006]
[1762182508377,0.94523546,107840.0,107830.0,0.006]
[1762182508772,0.71339546,107840.0,107830.0,0.006]
[1762182509277,0.4985327,107840.0,107830.0,0.1431813]
[1762182509776,0.41178,107840.0,107830.0,0.1381813]
[1762182509983,0.41178,107840.0,107830.0,0.4622613]
[1762182510274,0.5045327,107840.0,107830.0,0.4622613]
[1762182510482,0.5035327,107840.0,107830.0,0.4622613]
[1762182510779,0.41078,107840.0,107830.0,0.4622613]
[1762182511080,0.5035327,107840.0,107830.0,0.4622613]
[1762182511274,0.41078,107840.0,107830.0,0.4622613]
[1762182511475,0.5153327,107840.0,107830.0,0.32508]
[1762182511670,0.5153327,107840.0,107830.0,0.001]
[1762182511876,1.0712127,107840.0,107830.0,0.001]
[1762182512079,0.1367585,107810.0,107800.0,0.1507011]
[1762182512277,0.4975532,107820.0,107810.0,0.1371985]
[1762182512680,0.40478,107820.0,107810.0,0.1371985]
[1762182512874,0.65662976,107830.0,107820.0,0.1157299]
[1762182513081,0.70060976,107830.0,107820.0,0.4747299]
[1762182513573,0.497547,107830.0,107820.0,0.38196]
[1762182513986,0.493547,107830.0,107820.0,0.38196]
[1762182514683,0.493547,107830.0,107820.0,0.47473]
[1762182514884,0.493547,107830.0,107820.0,0.05792]
[1762182515084,0.493547,107830.0,107820.0,0.15069]
[1762182515282,0.494547,107830.0,107820.0,0.15069]
[1762182515989,0.13424,107820.0,107810.0,0.4624857]
[1762182516187,0.49504,107820.0,107810.0,0.4624857]
[1762182516986,0.40427,107820.0,107810.0,0.4624857]
[1762182517187,0.40627,107820.0,107810.0,0.4674857]
[1762182517392,0.001,107830.0,107820.0,0.15163]
[1762182517590,0.3608,107840.0,107830.0,0.1384313]
[1762182517892,0.3608,107840.0,107830.0,0.4624313]
[1762182518985,0.3638,107850.0,107840.0,0.1516127]
[1762182519182,0.40727,107850.0,107840.0,0.1516127]
[1762182519586,0.4167889,107850.0,107840.0,0.1516127]
[1762182519790,0.40727,107850.0,107840.0,0.1516127]
[1762182520491,0.40727,107850.0,107840.0,0.1536127]
[1762182520696,0.41827,107850.0,107840.0,0.1536127]
[1762182521391,0.41827,107850.0,107840.0,0.01519]
[1762182521696,0.41827,107850.0,107840.0,0.4776127]
[1762182522194,0.41827,107850.0,107840.0,0.06086]
[1762182522496,0.04147,107830.0,107820.0,0.1516296]
[1762182522695,0.40227,107830.0,107820.0,0.4755896]
[1762182522993,0.40227,107830.0,107820.0,0.38282]
[1762182523182,0.40227,107830.0,107820.0,0.47559]
[1762182523383,0.40227,107830.0,107820.0,0.38282]
[1762182523591,0.4950314,107830.0,107820.0,0.38282]
[1762182524095,0.4970314,107830.0,107820.0,0.38882]
[1762182524697,0.8578314,107830.0,107820.0,0.38882]
[1762182525398,0.8578314,107830.0,107820.0,0.39182]
[1762182526000,0.8578314,107830.0,107820.0,0.38882]
[1762182526207,0.8618314,107830.0,107820.0,0.38482]
[1762182526506,1.0936714,107830.0,107820.0,0.002]
[1762182526700,0.1373186,107810.0,107800.0,0.38187]
[1762182526901,0.70118136,107810.0,107800.0,0.38187]
[1762182527405,0.4981186,107810.0,107800.0,0.4746572]
[1762182527700,0.4981186,107810.0,107800.0,0.38187]
[1762182527900,0.8589186,107810.0,107800.0,0.32396]
[1762182528098,0.8589186,107810.0,107800.0,0.4398572]
[1762182528608,0.8589186,107810.0,107800.0,0.34707]
[1762182528992,0.8609186,107810.0,107800.0,0.005]
[1762182529199,1.0928386,107810.0,107800.0,0.005]
[1762182529501,0.8609186,107810.0,107800.0,0.005]
[1762182529697,0.8629186,107810.0,107800.0,0.0947872]
[1762182529893,0.8629186,107810.0,107800.0,0.05954]
[1762182530097,0.8629186,107810.0,107800.0,0.002]
[1762182530298,0.04454,107800.0,107790.0,0.1372001]
[1762182530595,0.3608,107800.0,107790.0,0.18701849]
[1762182530896,0.41934,107810.0,107800.0,0.150327]
[1762182531098,0.04454,107800.0,107790.0,0.04981839]
[1762182531307,0.04454,107790.0,107780.0,0.20052939]
[1762182531606,0.40534,107790.0,107780.0,0.52452939]
[1762182532598,0.40334,107790.0,107780.0,0.52652939]
[1762182532999,0.40334,107790.0,107780.0,0.20252939]
[1762182533303,0.40334,107790.0,107780.0,0.52652939]
[1762182533512,0.02432,107790.0,107780.0,0.52852939]
[1762182533698,0.005,107790.0,107780.0,0.52852939]
[1762182534505,0.41034,107790.0,107780.0,0.52853279]
[1762182535407,0.005,107790.0,107780.0,0.52853279]
[1762182535607,0.3658,107790.0,107780.0,0.52853279]
[1762182535796,0.41034,107790.0,107780.0,0.52853279]
[1762182536406,0.41034,107790.0,107780.0,0.4787144]
[1762182537006,0.40534,107790.0,107780.0,0.4787144]
[1762182537205,0.03304068,107840.0,107830.0,0.0213]
[1762182537406,0.02494113,107860.0,107840.0,0.1271826]
[1762182537608,8e-08,107880.0,107860.0,0.1502756]
[1762182537909,0.05256102,107890.0,107880.0,0.1502584]
[1762182537910,0.003,107890.0,107880.0,0.1502584]
[1762182538109,0.06608136,107920.0,107900.0,0.03443]
[1762182538304,0.11062136,107920.0,107910.0,0.1371026]
[1762182538504,0.04454,107920.0,107910.0,0.04441]
[1762182538712,0.04454,107920.0,107910.0,0.27137052]
[1762182538908,0.003,107930.0,107920.0,0.150224]
[1762182539205,0.04454,107940.0,107930.0,0.17867792]
[1762182539405,0.04454,107940.0,107930.0,0.27135342]
[1762182539406,0.40534,107940.0,107930.0,0.27135342]
[1762182539606,0.40534,107940.0,107930.0,0.02311]
[1762182539799,0.04454,107920.0,107910.0,0.06918167]
[1762182540000,0.41234,107920.0,107910.0,0.11946427]
[1762182540202,0.41234,107920.0,107910.0,0.02677167]
[1762182540612,0.54660792,107920.0,107910.0,0.02677167]
[1762182540812,0.55640792,107920.0,107910.0,0.002]
[1762182541016,0.78808792,107920.0,107910.0,0.002]
[1762182541415,0.78808792,107920.0,107890.0,0.02477167]
[1762182541416,0.04454,107900.0,107890.0,0.02477167]
[1762182541615,0.86624792,107900.0,107890.0,0.02477167]
[1762182541913,0.04454,107890.0,107880.0,0.1371219]
[1762182542116,0.36922,107890.0,107880.0,0.02477167]
[1762182542311,0.36922,107890.0,107880.0,0.0927184]
[1762182542620,0.36922,107890.0,107880.0,0.5110584]
[1762182542917,0.36922,107890.0,107880.0,0.1502584]
[1762182543414,0.02132,107880.0,107870.0,0.40868167]
[1762182543721,0.04454,107870.0,107860.0,0.18997766]
[1762182543907,0.04454,107870.0,107860.0,0.15680515]
[1762182543908,0.37114,107870.0,107860.0,0.15680515]
[1762182544110,0.36914,107870.0,107860.0,0.13203348]
[1762182544306,0.72994,107870.0,107860.0,0.13203498]
[1762182545012,0.822667,107870.0,107860.0,0.13203498]
[1762182545217,0.822667,107870.0,107860.0,0.03929938]
[1762182545514,0.825667,107870.0,107860.0,0.06059938]
[1762182545716,0.825667,107870.0,107860.0,0.00305938]
[1762182545906,1.19169492,107870.0,107860.0,0.00305938]
[1762182546113,0.54060792,107870.0,107860.0,0.09579498]
[1762182546411,0.836627,107870.0,107860.0,0.12090498]
[1762182546613,0.836627,107870.0,107860.0,0.00505938]
[1762182546812,0.510067,107870.0,107860.0,0.00505938]
[1762182547011,0.74386,107870.0,107860.0,0.09779498]
[1762182547211,0.836587,107870.0,107860.0,0.00505938]
[1762182547621,0.97085492,107870.0,107860.0,0.00505938]
[1762182548418,0.836587,107870.0,107860.0,0.00505938]
[1762182549120,0.836587,107870.0,107860.0,0.13403478]
[1762182549316,0.7437,107870.0,107860.0,0.15533478]
[1762182549516,0.8364268,107870.0,107860.0,0.00505938]
[1762182549715,0.64433472,107870.0,107860.0,0.00505938]
[1762182550011,0.64833472,107870.0,107860.0,0.00605938]
[1762182550218,1.20645472,107870.0,107860.0,0.00605938]
[1762182550814,0.97469472,107870.0,107860.0,0.00605938]
[1762182551019,1.20645472,107870.0,107860.0,0.00605938]
[1762182551218,0.840427,107870.0,107860.0,0.00605938]
[1762182551912,0.97469492,107870.0,107860.0,0.00605938]
[1762182552521,0.1352528,107840.0,107830.0,0.52273957]
[1762182552720,0.1352528,107840.0,107830.0,0.04441]
[1762182552921,0.26952072,107840.0,107830.0,0.1371714]
[1762182553424,0.36886,107840.0,107830.0,0.1371714]
[1762182553622,0.0425,107850.0,107840.0,0.1502875]
[1762182553808,0.36878,107850.0,107840.0,0.1502875]
[1762182554012,0.4615642,107850.0,107840.0,0.05754]
[1762182554212,0.4615642,107850.0,107840.0,0.1502928]
[1762182554414,0.4615242,107850.0,107840.0,0.1502928]
[1762182554721,0.4725242,107850.0,107840.0,0.1522928]
[1762182555125,0.8333242,107850.0,107840.0,0.05954]
[1762182555312,0.8333242,107850.0,107840.0,0.1522926]
[1762182555715,0.96759212,107850.0,107840.0,0.05954]
[1762182556418,0.97059212,107850.0,107840.0,0.05954]
[1762182556720,0.97059212,107850.0,107840.0,0.1522926]
[1762182557429,0.97059212,107850.0,107840.0,0.05954]
[1762182557724,0.97059212,107850.0,107840.0,0.002]
[1762182559121,0.1352614,107830.0,107820.0,0.02783218]
[1762182559320,0.95644932,107830.0,107820.0,0.12060218]
[1762182559523,0.95644932,107830.0,107820.0,0.09583051]
[1762182559717,0.95644932,107830.0,107820.0,0.00306051]
[1762182559912,0.0425,107830.0,107820.0,0.45663051]
[1762182560113,0.0425,107840.0,107830.0,0.1369614]
[1762182560317,0.36866,107840.0,107830.0,0.4977614]
[1762182560514,0.0425,107840.0,107830.0,0.52253307]
[1762182561413,0.02125,107840.0,107830.0,0.52253307]
[1762182561619,0.4033,107850.0,107840.0,0.1501426]
[1762182562716,0.4033,107850.0,107840.0,0.05739]
[1762182562922,0.0425,107840.0,107830.0,0.85164577]
[1762182563218,0.0425,107840.0,107830.0,0.003]
[1762182563219,0.53756792,107840.0,107830.0,0.003]
[1762182563420,0.0425,107830.0,107820.0,0.11839469]
[1762182563626,0.53456792,107830.0,107820.0,0.21120564]
[1762182564421,0.85768792,107830.0,107820.0,0.11843584]
[1762182564623,0.72342,107830.0,107820.0,0.06299333]
[1762182564931,0.49688792,107830.0,107820.0,0.15381584]
[1762182565930,0.50788792,107830.0,107820.0,0.15781584]
[1762182566120,0.50788792,107830.0,107820.0,0.19293584]
[1762182566321,0.50788792,107830.0,107820.0,0.10016584]
[1762182566520,0.51088792,107830.0,107820.0,0.09916584]
[1762182566928,0.51088792,107830.0,107820.0,0.19193564]
[1762182567133,0.49988792,107830.0,107820.0,0.18893564]
[1762182567428,0.52288792,107830.0,107820.0,0.19293564]
[1762182567625,0.61564912,107830.0,107820.0,0.19293564]
[1762182567827,0.61564912,107830.0,107820.0,0.21520564]
[1762182568225,0.61364912,107830.0,107820.0,0.21520564]
[1762182568827,0.61064912,107830.0,107820.0,0.21520564]
[1762182569034,0.61464912,107830.0,107820.0,0.21520564]
[1762182569326,0.61464912,107830.0,107820.0,0.19039282]
[1762182569523,0.61064912,107830.0,107820.0,0.19039282]
[1762182569726,0.61364912,107830.0,107820.0,0.19039282]
[1762182569925,0.4791012,107830.0,107820.0,0.60101121]
[1762182570119,0.61336912,107830.0,107820.0,0.14744141]
[1762182570318,0.59236912,107830.0,107820.0,0.14344141]
[1762182570521,0.61236912,107830.0,107820.0,0.09762302]
[1762182570718,0.61236912,107830.0,107820.0,0.19039302]
[1762182570923,0.4781012,107830.0,107820.0,0.24021141]
[1762182571135,0.61236912,107830.0,107820.0,0.24021141]
[1762182571430,0.59236912,107830.0,107820.0,0.2030389]
[1762182571624,0.61036912,107830.0,107820.0,0.2070389]
[1762182573028,0.51760792,107830.0,107820.0,0.5678389]
[1762182573224,0.61020932,107830.0,107820.0,0.5638389]
[1762182573429,0.61220932,107830.0,107820.0,0.2070389]
[1762182573731,0.61220932,107830.0,107820.0,0.5678389]
[1762182574231,0.61220932,107830.0,107820.0,0.1142689]
[1762182574430,0.61220932,107830.0,107820.0,0.2070389]
[1762182575936,0.97300932,107830.0,107820.0,0.0568789]
[1762182576131,0.97300932,107830.0,107820.0,0.1496489]
[1762182576438,0.97300932,107830.0,107820.0,0.1853289]
[1762182576635,0.64732932,107830.0,107820.0,0.1853289]
[1762182576835,0.97280932,107830.0,107820.0,0.1853289]
[1762182577034,0.97280932,107830.0,107820.0,0.2084789]
[1762182577336,0.97276932,107830.0,107820.0,0.2084789]
[1762182578234,0.64732932,107830.0,107820.0,0.2084789]
[1762182578437,0.97272932,107830.0,107820.0,0.2084789]
[1762182578829,0.97268932,107830.0,107820.0,0.2084789]
[1762182579633,0.0595,107830.0,107820.0,0.2084789]
[1762182579948,0.1522614,107830.0,107820.0,0.58600281]
[1762182580138,0.64732932,107830.0,107820.0,0.13243281]
[1762182580334,0.64732932,107830.0,107820.0,0.06589051]
[1762182580540,0.64732932,107830.0,107820.0,0.00706051]
[1762182580728,0.64732932,107830.0,107820.0,0.04274051]
[1762182581038,0.64732932,107830.0,107820.0,0.06589051]
[1762182581431,0.64732932,107830.0,107820.0,0.22520261]
[1762182581740,0.28652932,107830.0,107820.0,0.22520261]
[1762182582833,0.023,107830.0,107820.0,0.55044261]
[1762182583137,0.023,107830.0,107820.0,0.92791197]
[1762182583331,0.023,107830.0,107820.0,0.48390031]
[1762182583332,0.0535,107830.0,107820.0,0.48390031]
[1762182583625,0.0535,107830.0,107820.0,0.55047591]
[1762182584026,0.0535,107830.0,107820.0,0.22523591]
[1762182584229,0.28052932,107830.0,107820.0,0.55051591]
[1762182584436,0.28052932,107830.0,107820.0,0.22523591]
[1762182584640,0.28052932,107830.0,107820.0,0.55047611]
[1762182584939,0.28052932,107830.0,107820.0,0.45770611]
[1762182585137,0.28052932,107830.0,107820.0,0.13246611]
[1762182585333,0.28052932,107830.0,107820.0,0.55047611]
[1762182585838,0.28052932,107830.0,107820.0,0.45770611]
[1762182586231,0.64132932,107830.0,107820.0,0.13246611]
[1762182586630,0.64132932,107830.0,107820.0,0.06589051]
[1762182586943,0.64132932,107830.0,107820.0,0.11586961]
[1762182587544,0.0927786,107810.0,107800.0,0.07979819]
[1762182587743,0.61834652,107810.0,107800.0,0.06675291]
[1762182588038,0.61834652,107810.0,107800.0,0.15954011]
[1762182588345,0.61834652,107810.0,107800.0,0.06675291]
[1762182588645,0.61834652,107810.0,107800.0,9.259e-05]
[1762182588849,0.61834652,107810.0,107800.0,0.00109259]
[1762182589336,0.69356031,107810.0,107800.0,0.00109259]
[1762182589735,0.70856031,107810.0,107800.0,0.00509259]
[1762182590130,0.70856031,107810.0,107800.0,0.09787979]
[1762182590532,0.70856031,107810.0,107800.0,0.09387979]
[1762182590533,0.69356031,107810.0,107800.0,0.09387979]
[1762182590728,0.71856031,107810.0,107800.0,0.09787979]
[1762182591144,0.64334652,107810.0,107800.0,0.09787979]
[1762182591345,0.64334652,107810.0,107800.0,0.00509259]
[1762182592440,0.64334652,107810.0,107800.0,0.03739306]
[1762182592743,0.64734652,107810.0,107800.0,0.03739306]
[1762182593244,0.95353791,107810.0,107800.0,0.03739306]
[1762182593442,0.95353791,107810.0,107800.0,0.06236414]
[1762182594851,0.0305,107790.0,107780.0,0.00306165]
[1762182595053,0.85044792,107790.0,107780.0,0.00306165]
[1762182595349,0.85044792,107790.0,107780.0,0.01584165]
[1762182595555,0.85044792,107790.0,107780.0,0.03875165]
[1762182595745,0.85052634,107790.0,107780.0,0.03875165]
[1762182596543,0.85152634,107790.0,107780.0,0.00306165]
[1762182596846,1.44428634,107790.0,107780.0,0.00706165]
[1762182597046,0.01638,107770.0,107760.0,0.07985032]
[1762182597247,0.83650051,107770.0,107760.0,0.07985032]
[1762182597447,0.83650051,107770.0,107760.0,0.10276032]
[1762182597754,0.83650051,107770.0,107760.0,0.1289216]
[1762182597755,0.83250051,107770.0,107760.0,0.1289216]
[1762182597946,0.83250051,107770.0,107760.0,0.0361]
[1762182598353,0.83250051,107770.0,107760.0,0.1289216]
[1762182598654,0.84184365,107770.0,107760.0,0.1501216]
[1762182598855,0.84184365,107770.0,107760.0,0.1521216]
[1762182599153,0.70757573,107770.0,107760.0,0.1521216]
[1762182599353,0.84184365,107770.0,107760.0,0.1521216]
[1762182599745,0.93465675,107770.0,107760.0,0.1521216]
[1762182600243,0.93465675,107770.0,107760.0,0.0593]
[1762182600455,1.02158982,107770.0,107760.0,0.1561216]
[1762182600952,1.02158982,107770.0,107760.0,0.0633]
[1762182601154,0.81838883,107770.0,107760.0,0.0633]
[1762182601355,1.02158982,107770.0,107760.0,0.0633]
[1762182601954,1.02158982,107770.0,107760.0,0.1561216]
[1762182602542,0.92853672,107770.0,107760.0,0.1561216]
[1762182602745,0.12024873,107770.0,107760.0,0.1561216]
[1762182603257,0.33182972,107770.0,107760.0,0.0633]
[1762182603445,0.69262972,107770.0,107760.0,0.0633]
[1762182603842,0.69262972,107770.0,107760.0,0.1561214]
[1762182604651,1.01738972,107770.0,107760.0,0.1561214]
[1762182604850,0.32763942,107770.0,107760.0,0.5169214]
[1762182605053,0.02743573,107770.0,107760.0,0.8416414]
[1762182605256,0.1011713,107800.0,107790.0,0.1369055]
[1762182605649,0.40122,107810.0,107800.0,0.1496772]
[1762182605855,0.04042,107810.0,107800.0,0.5104772]
[1762182606155,0.1331985,107810.0,107800.0,0.8360772]
[1762182606343,0.04042,107810.0,107800.0,0.8360772]
[1762182606548,0.04993846,107810.0,107800.0,0.8360772]
[1762182607258,0.00951846,107810.0,107800.0,0.8360772]
[1762182607461,0.40122,107830.0,107820.0,0.1496599]
[1762182607655,0.60442099,107840.0,107830.0,0.1368711]
[1762182607954,0.48325957,107840.0,107830.0,0.1368711]
[1762182608161,0.12245957,107840.0,107830.0,0.04411]
[1762182608354,0.50346957,107840.0,107830.0,0.04411]
[1762182608564,0.50346957,107840.0,107830.0,0.1368713]
[1762182608858,0.14266957,107840.0,107830.0,0.4976713]
[1762182609054,0.14266957,107840.0,107830.0,0.40491]
[1762182609255,0.72567056,107840.0,107830.0,0.32956]
[1762182609963,0.72567056,107840.0,107830.0,0.35247]
[1762182610364,1.06095056,107840.0,107830.0,0.005]
[1762182610548,1.29279056,107840.0,107830.0,0.005]
[1762182611650,0.04042,107810.0,107800.0,0.05689]
[1762182611854,0.40122,107810.0,107800.0,0.05689]
[1762182612046,0.04042,107800.0,107790.0,0.0938191]
[1762182612250,0.92982099,107800.0,107790.0,0.04411]
[1762182612559,0.04042,107790.0,107780.0,0.5248435]
[1762182612760,0.04042,107790.0,107780.0,0.38233]
[1762182612947,0.04042,107790.0,107780.0,0.4751344]
[1762182613148,0.60442099,107800.0,107790.0,0.1369058]
[1762182613351,0.56902099,107800.0,107790.0,0.1369058]
[1762182613853,0.92982099,107800.0,107790.0,0.1369058]
[1762182614049,0.92582099,107800.0,107790.0,0.1369058]
[1762182614446,0.03242,107790.0,107780.0,0.4712091]
[1762182614652,0.03242,107790.0,107780.0,0.1515043]
[1762182614847,0.02842,107790.0,107780.0,0.1515043]
[1762182615053,0.02842,107790.0,107780.0,0.5123043]
[1762182615253,0.02842,107790.0,107780.0,0.1515043]
[1762182615453,0.02842,107790.0,107780.0,0.5123043]
[1762182615658,0.23062099,107800.0,107790.0,0.1387158]
[1762182615956,0.20620099,107800.0,107790.0,0.4995158]
[1762182616155,0.29898819,107800.0,107790.0,0.4995158]
[1762182616662,0.31119819,107800.0,107790.0,0.4995158]
[1762182616859,0.003,107800.0,107790.0,0.4995158]
[1762182617471,0.4780042,107810.0,107800.0,0.1525072]
[1762182618264,0.1172042,107810.0,107800.0,0.1525072]
[1762182618466,0.47799,107820.0,107810.0,0.1386986]
[1762182618649,1.00647099,107820.0,107810.0,0.1386986]
[1762182619159,1.00647099,107820.0,107810.0,0.04592]
[1762182619554,0.68119099,107820.0,107810.0,0.1386986]
[1762182619751,1.00647099,107820.0,107810.0,0.1386986]
[1762182619961,0.68119079,107820.0,107810.0,0.1386986]
[1762182620170,1.00643079,107820.0,107810.0,0.1386986]
[1762182620357,0.3608,107830.0,107820.0,0.05972]
[1762182620556,0.3608,107830.0,107820.0,0.1524898]
[1762182620862,0.59791806,107840.0,107830.0,0.1386812]
[1762182621064,0.59791806,107840.0,107830.0,0.04592]
[1762182621065,0.69067066,107840.0,107830.0,0.04592]
[1762182621363,0.1171812,107830.0,107820.0,0.36191]
[1762182621666,0.4829812,107830.0,107820.0,0.05972]
[1762182622165,0.4779812,107830.0,107820.0,0.05972]
[1762182622366,0.4779812,107830.0,107820.0,0.03667]
[1762182622560,0.4779812,107830.0,107820.0,0.05972]
[1762182623363,0.11719,107820.0,107810.0,0.4639386]
[1762182623564,0.32039099,107820.0,107810.0,0.4639386]
[1762182624552,0.32039099,107820.0,107810.0,0.37116]
[1762182624751,0.68419099,107820.0,107810.0,0.37116]
[1762182625858,0.1171986,107810.0,107800.0,0.09286579]
[1762182626157,0.1171986,107810.0,107800.0,0.51065299]
[1762182626357,0.1141986,107810.0,107800.0,0.51065299]
[1762182626865,0.4749986,107810.0,107800.0,0.38472]
[1762182627368,0.4769986,107810.0,107800.0,0.38472]
[1762182627559,0.1161986,107810.0,107800.0,0.4775072]
[1762182627866,0.4769986,107810.0,107800.0,0.4775072]
[1762182628165,0.1351986,107810.0,107800.0,0.4815072]
[1762182628553,0.4959986,107810.0,107800.0,0.4815072]
[1762182628958,0.021,107810.0,107800.0,0.87545299]
[1762182629163,0.021,107810.0,107800.0,0.92516209]
[1762182630167,0.021,107810.0,107800.0,0.8920163]
[1762182630358,0.1137785,107810.0,107800.0,0.8920163]
[1762182630561,0.70219949,107810.0,107800.0,0.09685358]
[1762182630761,0.70219949,107810.0,107800.0,0.06372]
[1762182631158,0.70219949,107810.0,107800.0,0.09685358]
[1762182631668,0.70219949,107810.0,107800.0,0.06372]
[1762182632458,0.70219949,107810.0,107800.0,0.1565071]
[1762182632866,1.02711949,107810.0,107800.0,0.0178]
[1762182633766,1.02711949,107810.0,107800.0,0.1539672]
[1762182634164,0.70219949,107810.0,107800.0,0.18710078]
[1762182634369,0.03321,107810.0,107800.0,0.18710078]
[1762182634558,0.021,107810.0,107800.0,0.59760988]
[1762182635062,0.021,107810.0,107800.0,0.5644763]
[1762182635369,0.021,107810.0,107800.0,0.5147672]
[1762182635768,0.021,107810.0,107800.0,0.58142752]
[1762182636362,0.49147587,107840.0,107830.0,0.1361414]
[1762182637371,0.13066977,107840.0,107830.0,0.4969414]
[1762182637665,0.13066977,107840.0,107830.0,0.12635643]
[1762182637866,0.13066977,107840.0,107830.0,0.12935643]
[1762182638061,0.16566977,107840.0,107830.0,0.13035643]
[1762182638469,0.13666977,107840.0,107830.0,0.12735643]
[1762182638769,0.85163977,107840.0,107830.0,0.03719057]
[1762182638970,0.85163977,107840.0,107830.0,0.004]
[1762182639271,0.85163977,107840.0,107830.0,0.03719057]
[1762182639568,0.85163977,107840.0,107830.0,0.004]
[1762182639768,0.85163977,107840.0,107830.0,0.02526]
[1762182640165,0.85163977,107840.0,107830.0,0.004]
[1762182640666,0.85163977,107840.0,107830.0,0.04638]
[1762182640667,0.84763977,107840.0,107830.0,0.04638]
[1762182641073,0.84763977,107840.0,107830.0,0.003]
[1762182641261,0.84763977,107840.0,107830.0,0.0957614]
[1762182641466,0.84034977,107840.0,107830.0,0.1391414]
[1762182642373,0.51546977,107840.0,107830.0,0.17233197]
[1762182644873,0.51546977,107840.0,107830.0,0.07957057]
[1762182645172,0.52555977,107840.0,107830.0,0.03619057]
[1762182645373,0.52555977,107840.0,107830.0,0.003]
[1762182645763,0.1350114,107830.0,107820.0,0.03319057]
[1762182645968,1.02349239,107830.0,107820.0,0.03319057]
[1762182646667,0.14573,107820.0,107810.0,0.08297643]
[1762182646861,0.0927786,107810.0,107800.0,0.01659586]
[1762182647064,0.98125959,107810.0,107800.0,0.01659586]
[1762182648874,0.97825959,107810.0,107800.0,0.01659586]
[1762182649376,0.98325959,107810.0,107800.0,0.01659586]
[1762182650671,1.20517959,107810.0,107800.0,0.01659586]
[1762182650877,1.22017959,107810.0,107800.0,0.02059586]
[1762182651478,1.22017959,107810.0,107800.0,0.004]
[1762182651975,1.22017959,107810.0,107780.0,0.12433032]
[1762182652172,0.56400099,107790.0,107780.0,0.12433032]
[1762182652477,0.88844099,107790.0,107780.0,0.12433032]
[1762182652876,0.88844099,107790.0,107780.0,0.05767]
[1762182653272,0.87844099,107790.0,107780.0,0.05767]
[1762182653967,0.87944099,107790.0,107780.0,0.05767]
[1762182654164,0.87944099,107790.0,107780.0,0.1504744]
[1762182654876,0.87944099,107790.0,107780.0,0.1794147]
[1762182655080,0.86944099,107790.0,107780.0,0.1794147]
[1762182655576,0.86944099,107790.0,107780.0,0.0866103]
[1762182655771,0.86944099,107790.0,107780.0,0.0826103]
[1762182655972,0.88144099,107790.0,107780.0,0.0629303]
[1762182656373,0.88144099,107790.0,107780.0,0.1784147]
[1762182656573,0.97423679,107790.0,107780.0,0.1784147]
[1762182656976,0.96423679,107790.0,107780.0,0.1784147]
[1762182658279,0.63343679,107790.0,107780.0,0.1784147]
[1762182658480,0.99423679,107790.0,107780.0,0.1784147]
[1762182658672,0.99423679,107790.0,107780.0,0.0407203]
[1762182659069,0.98423679,107790.0,107780.0,0.0407203]
[1762182659378,1.21619679,107790.0,107780.0,0.003]
[1762182659678,0.98423679,107790.0,107780.0,0.003]
[1762182659980,0.0928044,107780.0,107770.0,0.0610303]
[1762182660174,0.4536044,107780.0,107770.0,0.03609]
[1762182660477,0.092813,107770.0,107760.0,0.0381303]
[1762182660679,0.91282196,107770.0,107760.0,0.0381303]
[1762182660872,0.91282196,107770.0,107750.0,0.0249403]
[1762182660873,1.15429959,107770.0,107750.0,0.0249403]
[1762182661077,0.86225792,107760.0,107740.0,0.02799401]
[1762182661268,1.18577792,107750.0,107720.0,0.0588403]
[1762182661579,0.49252896,107730.0,107720.0,0.0588403]
[1762182661774,0.81700896,107730.0,107720.0,0.0588403]
[1762182662273,0.81700896,107730.0,107720.0,0.0139503]
[1762182662786,0.81804896,107730.0,107720.0,0.1516964]